bitfinex/quotes_ETHUSD_20240614
["timestamp","ask_amount","ask_price","bid_price","bid_amount"]
[1718374816639,1.43344514,3491.6,3491.5,5.72815]
[1718374816844,3.0,3492.1,3491.7,2.86385]
[1718374817070,4.43344514,3492.0,3491.7,2.86385]
[1718374817564,4.43344514,3492.0,3491.4,5.12183]
[1718374817964,4.43344514,3492.0,3491.7,2.86387]
[1718374818207,4.43344514,3492.0,3491.5,2.86408]
[1718374818867,1.43344514,3492.0,3491.7,2.86386]
[1718374820208,3.0,3491.8,3491.0,2.86449]
[1718374820430,3.0,3491.8,3491.2,2.86426]
[1718374820431,1.43344514,3491.7,3491.2,2.86426]
[1718374821209,1.43344514,3491.7,3491.2,2.8643]
[1718374821210,3.0,3491.4,3491.2,2.8643]
[1718374821410,1.43344514,3491.3,3491.0,2.86448]
[1718374821710,1.43344514,3491.3,3490.7,5.1336951]
[1718374821711,1.87678965,3491.3,3490.7,0.1229951]
[1718374821912,1.87678965,3491.3,3490.8,2.86466]
[1718374822217,1.43344514,3491.3,3491.2,2.86434]
[1718374822716,1.43344514,3491.3,3491.2,5.72868]
[1718374822887,1.43344514,3491.3,3490.7,0.1229951]
[1718374822888,3.0,3491.1,3490.7,2.9877351]
[1718374823099,1.43344514,3491.0,3490.9,2.86459]
[1718374823535,1.43344514,3491.0,3490.7,2.9877351]
[1718374824016,1.43344514,3491.0,3490.8,2.86467]
[1718374824179,1.43344514,3491.0,3490.9,2.86459]
[1718374824510,1.43344514,3491.0,3490.7,0.1229951]
[1718374824709,0.44334451,3490.9,3490.7,0.1229951]
[1718374825015,1.43344514,3490.8,3490.7,0.1229951]
[1718374825820,7.29811514,3490.8,3490.7,0.1229951]
[1718374826875,4.43344514,3490.8,3490.7,0.1229951]
[1718374827281,1.43344514,3490.8,3490.7,0.1229951]
[1718374827472,4.43344514,3490.8,3490.7,0.1229951]
[1718374828294,1.43344514,3490.8,3490.7,0.1229951]
[1718374828615,3.0,3491.5,3490.7,0.1229951]
[1718374828616,3.0,3491.2,3490.7,2.9877451]
[1718374828918,1.43344514,3491.1,3490.7,2.9877451]
[1718374829800,1.43344514,3491.1,3490.8,2.86466]
[1718374830384,1.43344514,3491.1,3490.9,2.86457]
[1718374830590,3.0,3490.8,3490.7,0.1229951]
[1718374830787,7.29811514,3490.8,3490.7,0.1229951]
[1718374830988,8.32792665,3490.8,3490.7,0.1229951]
[1718374831504,5.46325665,3490.8,3490.7,0.1229951]
[1718374831885,11.36890272,3490.8,3490.7,0.1229951]
[1718374832540,14.23357272,3490.8,3490.7,0.1229951]
[1718374832835,17.09824272,3490.8,3490.7,0.1229951]
[1718374833055,19.96291272,3490.8,3490.7,0.1229951]
[1718374833272,20.40260872,3490.8,3490.7,0.1229951]
[1718374833454,17.09824272,3490.8,3490.7,0.1229951]
[1718374833862,20.55227472,3490.8,3490.7,0.1229951]
[1718374834246,17.09824272,3490.8,3490.7,0.1229951]
[1718374834456,19.68681472,3490.8,3490.7,0.1229951]
[1718374835341,25.56248472,3490.8,3490.7,0.1229951]
[1718374836971,25.64377225,3490.8,3490.7,0.1229951]
[1718374837179,26.95397225,3490.8,3490.7,0.1229951]
[1718374837346,29.81864225,3490.8,3490.7,0.1229951]
[1718374837561,30.86435148,3490.8,3490.7,0.1229951]
[1718374837885,30.86435148,3490.8,3488.6,3.10139997]
[1718374837886,3.0,3488.7,3488.6,3.10139997]
[1718374838251,3.03709356,3488.7,3488.6,3.10139997]
[1718374838445,4.4705387,3488.7,3488.6,3.10139997]
[1718374838850,7.4705387,3488.7,3488.6,3.10139997]
[1718374840135,10.3369287,3488.7,3488.6,3.10139997]
[1718374840866,14.23701157,3488.7,3488.6,3.10139997]
[1718374843271,11.37062157,3488.7,3488.6,3.10139997]
[1718374843481,14.23701157,3488.7,3488.6,3.10139997]
[1718374844098,7.4705387,3488.7,3488.6,3.10139997]
[1718374844423,6.03709356,3488.7,3488.6,3.10139997]
[1718374844891,6.03709356,3488.7,3488.6,5.52709997]
[1718374845332,6.0,3488.7,3488.6,5.52709997]
[1718374845612,6.03684246,3488.7,3488.6,3.10139997]
[1718374845815,8.36058885,3488.7,3488.6,3.10139997]
[1718374845998,7.4702876,3488.7,3488.6,3.10139997]
[1718374847219,10.3366776,3488.7,3488.6,3.10139997]
[1718374848342,7.4702876,3488.7,3488.6,3.10139997]
[1718374848806,10.3366776,3488.7,3488.6,3.10139997]
[1718374849431,13.2030676,3488.7,3488.6,3.10139997]
[1718374849717,15.11110336,3488.7,3488.6,3.10139997]
[1718374849916,17.97749336,3488.7,3488.6,3.10139997]
[1718374850218,20.98849336,3488.7,3488.6,3.10139997]
[1718374850689,27.46622236,3488.7,3488.6,3.10139997]
[1718374850888,30.09044436,3488.7,3488.6,3.10139997]
[1718374851419,23.94311736,3488.7,3488.6,3.10139997]
[1718374851581,15.11110336,3488.7,3488.6,3.10139997]
[1718374851777,20.98849336,3488.7,3488.6,3.10139997]
[1718374851975,17.32210336,3488.7,3488.6,3.10139997]
[1718374852178,12.24471336,3488.7,3488.6,3.10139997]
[1718374852382,9.37832336,3488.7,3488.6,3.10139997]
[1718374852591,7.4702876,3488.7,3488.6,3.10139997]
[1718374853128,10.3366776,3488.7,3488.6,3.10139997]
[1718374853329,13.2030676,3488.7,3488.6,3.10139997]
[1718374853919,7.4702876,3488.7,3488.6,3.10139997]
[1718374856230,10.3366776,3488.7,3488.6,3.10139997]
[1718374856444,10.82418926,3488.7,3488.6,3.10139997]
[1718374856723,7.95779926,3488.7,3488.6,3.10139997]
[1718374856899,10.82418926,3488.7,3488.6,3.10139997]
[1718374858236,16.55696926,3488.7,3488.6,3.10139997]
[1718374859081,13.69057926,3488.7,3488.6,3.10139997]
[1718374860229,10.82418926,3488.7,3488.6,3.10139997]
[1718374860436,13.69057926,3488.7,3488.6,3.10139997]
[1718374861154,39.27497826,3488.7,3488.6,3.10139997]
[1718374861442,23.74455926,3488.7,3488.6,3.10139997]
[1718374861595,38.34832326,3488.7,3488.6,3.10139997]
[1718374861797,3.0,3487.3,3487.2,0.1229951]
[1718374862032,4.46896701,3487.3,3487.2,0.1229951]
[1718374862622,7.46896701,3487.3,3487.2,0.1229951]
[1718374862823,0.03552187,3487.3,3487.2,0.1229951]
[1718374863045,10.27,3488.2,3487.2,3.04797329]
[1718374863334,4.43344514,3488.2,3487.6,1.611]
[1718374863494,1.43344514,3488.1,3487.7,2.4872]
[1718374863702,4.43344514,3488.1,3487.7,2.4872]
[1718374864134,3.0,3488.5,3487.7,2.4872]
[1718374864336,7.27,3489.1,3487.9,1.611]
[1718374864509,3.0,3488.7,3488.0,1.01482]
[1718374864715,4.43344514,3488.6,3488.0,1.01482]
[1718374864918,4.43344514,3488.6,3488.0,0.46482]
[1718374865096,3.0,3488.2,3487.7,2.4872]
[1718374865302,1.43344514,3488.1,3487.7,2.4872]
[1718374865501,2.86615,3489.0,3487.8,0.55]
[1718374865502,3.0,3488.5,3487.8,0.55]
[1718374865736,1.43344514,3488.5,3487.8,3.47444358]
[1718374865945,7.27,3489.1,3487.9,2.86703]
[1718374866139,7.27,3489.1,3488.2,2.3206]
[1718374866140,1.43344514,3489.0,3488.2,2.3206]
[1718374866507,3.0,3488.6,3488.2,2.3206]
[1718374866708,3.0,3488.2,3487.3,2.3206]
[1718374866904,1.43344514,3488.1,3487.3,2.3206]
[1718374867471,1.43344514,3487.9,3487.3,2.3206]
[1718374867766,3.0,3487.7,3487.3,2.3206]
[1718374867920,1.43344514,3487.6,3487.3,2.3206]
[1718374868457,3.0,3488.1,3487.4,2.86746]
[1718374868654,3.0,3488.1,3487.3,2.56495951]
[1718374868655,1.43344514,3488.1,3487.5,0.05733925]
[1718374868978,3.0,3488.6,3487.9,2.3686]
[1718374869169,1.43344514,3488.5,3488.0,0.0573363]
[1718374869839,1.43344514,3488.5,3487.9,2.3686]
[1718374870041,3.0,3488.8,3488.0,0.05733207]
[1718374870382,1.43344514,3488.7,3488.0,2.92429207]
[1718374870520,1.43344514,3488.7,3488.1,2.86686]
[1718374870722,1.43344514,3488.7,3488.2,0.05732876]
[1718374870975,3.0,3489.1,3488.3,0.60732876]
[1718374871267,7.27,3489.4,3488.5,5.19705]
[1718374871493,1.43344514,3489.3,3488.7,2.86639]
[1718374871626,1.43344514,3489.3,3488.8,0.05732054]
[1718374872155,3.0,3489.8,3488.8,2.92361054]
[1718374872470,1.46985726,3489.7,3489.0,2.4832]
[1718374872625,1.46985726,3489.7,3489.0,3.52531305]
[1718374872825,0.03641212,3489.7,3489.2,2.148]
[1718374873028,3.0,3490.3,3489.3,3.47319994]
[1718374873301,0.03631175,3489.6,3489.4,5.26232]
[1718374873446,1.43344514,3490.2,3489.5,4.56139836]
[1718374873651,1.43344514,3490.2,3489.5,1.69565836]
[1718374873829,3.0,3490.5,3489.5,1.63835199]
[1718374874029,1.43344514,3490.4,3489.6,2.92295319]
[1718374874226,1.43344514,3490.4,3489.7,0.55]
[1718374874449,1.43344514,3490.4,3489.7,1.30078052]
[1718374874668,3.0,3490.1,3489.4,2.3965]
[1718374874980,1.43344514,3490.0,3489.4,2.3965]
[1718374875166,4.43344514,3490.0,3489.4,2.3965]
[1718374875482,1.43344514,3490.0,3489.4,2.3965]
[1718374875705,4.43344514,3490.0,3489.4,2.3965]
[1718374876207,4.43344514,3490.0,3489.5,0.05731461]
[1718374876492,3.0,3490.0,3489.5,0.05731461]
[1718374876706,3.0,3490.0,3489.4,2.63615]
[1718374876707,3.0,3490.5,3489.6,3.41565]
[1718374876847,1.43344514,3490.4,3489.6,3.41565]
[1718374877044,1.43344514,3490.4,3489.1,2.86603]
[1718374877045,3.0,3490.1,3489.3,2.86588]
[1718374877279,3.0,3490.1,3489.4,2.92309851]
[1718374877485,3.0,3490.1,3489.3,2.86589]
[1718374877698,3.0,3490.1,3489.4,2.86581]
[1718374877856,3.0,3490.1,3489.4,2.92311466]
[1718374878056,3.0,3490.5,3489.6,5.2467]
[1718374878337,3.0,3490.5,3489.6,4.5291]
[1718374878463,3.0,3490.5,3489.7,0.55]
[1718374878840,3.0,3490.5,3489.7,3.41549]
[1718374879207,3.0,3490.5,3489.8,2.92277817]
[1718374879344,3.0,3490.5,3490.1,2.148]
[1718374880001,0.03549829,3490.4,3489.9,3.23475282]
[1718374880156,0.03549829,3490.4,3490.0,0.55]
[1718374880672,3.0,3490.5,3490.0,0.55]
[1718374881281,0.03553274,3490.4,3490.0,0.55]
[1718374881592,3.0,3491.1,3490.3,2.148]
[1718374881795,3.0,3491.1,3490.4,0.55]
[1718374881991,0.03692531,3491.0,3490.4,0.55]
[1718374882817,1.47037045,3491.0,3490.5,0.05728893]
[1718374883096,0.03692531,3491.0,3490.5,0.22052889]
[1718374883266,3.0,3491.5,3490.6,3.4721165]
[1718374883472,1.47065723,3491.4,3490.6,3.4721165]
[1718374883700,3.0,3491.3,3490.6,0.55]
[1718374883857,0.03679858,3491.2,3490.6,0.55]
[1718374884389,3.0,3490.9,3490.3,2.148]
[1718374884562,1.43344514,3490.8,3490.1,2.3157]
[1718374884768,1.47039752,3490.8,3490.1,2.3157]
[1718374885103,0.03695238,3490.8,3490.5,2.148]
[1718374885264,13.134,3491.7,3490.6,0.05728645]
[1718374885470,0.03666079,3490.7,3490.6,0.05728645]
[1718374885685,6.03322214,3491.6,3490.6,0.60728645]
[1718374886005,6.03322214,3491.6,3490.7,0.55]
[1718374886320,4.43344514,3491.6,3490.8,2.34668283]
[1718374886469,1.43344514,3491.5,3490.9,0.55]
[1718374886870,1.43344514,3491.5,3490.8,2.2894]
[1718374887063,3.0,3491.3,3490.8,2.2894]
[1718374887680,1.47081619,3491.2,3490.8,2.2894]
[1718374888199,5.06865781,3491.2,3490.5,2.148]
[1718374888502,0.77086267,3491.2,3490.5,2.148]
[1718374888665,0.03737105,3491.2,3490.6,0.55]
[1718374888862,0.03737105,3491.2,3490.7,0.05728585]
[1718374889103,0.03737105,3491.2,3490.8,0.05728585]
[1718374889291,3.0,3491.3,3490.6,0.55]
[1718374889498,0.03739543,3491.2,3490.6,0.55]
[1718374889696,0.03739543,3491.2,3490.6,1.333256]
[1718374890070,0.03739543,3491.2,3490.6,4.198086]
[1718374890284,1.47084057,3491.2,3490.7,0.05728348]
[1718374890610,1.47084057,3491.2,3490.8,0.05728794]
[1718374890611,0.03739543,3491.2,3490.8,0.05728794]
[1718374890767,0.03739543,3491.2,3490.6,0.55]
[1718374890968,6.0,3491.6,3490.6,0.55]
[1718374891170,0.03724184,3491.1,3490.6,1.333243]
[1718374891517,0.03701466,3491.0,3490.8,2.86463]
[1718374891670,0.03701466,3491.0,3490.9,0.05728363]
[1718374891871,1.43344514,3491.5,3490.6,4.198063]
[1718374892184,0.03739359,3491.4,3490.6,1.333243]
[1718374892383,0.03739359,3491.4,3490.7,3.20974698]
[1718374892565,0.03739359,3491.4,3490.8,0.60728353]
[1718374892770,3.0,3491.3,3490.8,0.55]
[1718374893321,4.33509153,3491.2,3490.5,2.148]
[1718374893611,1.77074153,3491.2,3490.5,2.148]
[1718374894174,4.63510153,3491.2,3490.5,2.148]
[1718374894572,2.86468,3490.8,3489.3,10.08585]
[1718374894777,1.43344514,3490.8,3489.8,2.148]
[1718374895098,1.43344514,3490.8,3489.9,0.55]
[1718374895099,0.03712708,3490.7,3489.9,0.55]
[1718374895272,3.0,3490.5,3490.2,1.609]
[1718374895471,0.03641605,3490.4,3490.2,1.609]
[1718374896286,2.86515,3490.3,3489.8,1.609]
[1718374896468,1.46988084,3490.2,3489.8,1.609]
[1718374896867,3.0,3490.1,3489.8,1.609]
[1718374897073,0.03623631,3490.0,3489.4,2.2822]
[1718374898215,0.03623631,3490.0,3489.4,2.72502]
[1718374898408,0.03623631,3490.0,3489.5,0.55]
[1718374898921,4.43344514,3490.1,3489.5,0.55]
[1718374899293,0.03627076,3490.0,3489.6,0.05730607]
[1718374900614,3.0,3490.4,3489.7,0.55]
[1718374901111,0.03618322,3490.3,3489.7,4.486518]
[1718374901300,3.0,3490.4,3489.7,4.486518]
[1718374901501,0.03604544,3490.3,3489.7,4.486518]
[1718374902089,0.03604544,3490.3,3489.7,1.620958]
[1718374902327,1.46949058,3490.3,3489.6,2.146]
[1718374902480,1.43344514,3490.2,3489.4,2.2822]
[1718374902678,0.03596319,3490.1,3489.5,0.55]
[1718374903400,0.03596319,3490.1,3489.6,0.05730441]
[1718374903597,0.03596319,3490.1,3489.6,2.92294441]
[1718374903805,0.03596319,3490.1,3489.7,1.41209444]
[1718374903980,3.0,3490.4,3489.8,0.0572997]
[1718374904179,0.03584978,3490.0,3489.9,0.55]
[1718374904374,3.0,3490.4,3489.9,0.55]
[1718374904579,0.03584978,3490.0,3489.9,0.55]
[1718374904815,3.0,3490.4,3489.9,0.55]
[1718374905021,0.03584978,3490.0,3489.8,0.55]
[1718374905179,3.0,3490.4,3489.8,0.55]
[1718374905381,0.03578379,3489.9,3489.8,0.55]
[1718374905580,3.0,3490.4,3489.8,0.97777344]
[1718374905884,3.0,3491.3,3490.4,2.86494]
[1718374906181,1.43344514,3491.3,3490.5,3.41485]
[1718374906383,4.43344514,3491.3,3490.5,0.55]
[1718374906700,1.43344514,3491.2,3490.3,2.146]
[1718374906903,1.43344514,3491.2,3490.4,0.55]
[1718374907089,3.0,3490.9,3490.4,0.55]
[1718374909390,3.0,3490.9,3490.5,0.32689169]
[1718374910032,3.0,3491.2,3490.6,0.60729169]
[1718374910185,3.0,3491.6,3490.6,0.60729169]
[1718374910380,3.0,3491.4,3490.6,3.04009169]
[1718374910609,3.0,3491.4,3490.5,0.2696]
[1718374910610,4.43344514,3491.3,3490.5,0.2696]
[1718374910809,3.0,3491.0,3490.0,2.368]
[1718374911011,4.43344514,3491.0,3490.1,0.55]
[1718374912328,1.43344514,3490.9,3490.1,0.55]
[1718374912536,7.29804514,3490.9,3489.6,2.86565]
[1718374912690,3.0,3491.0,3490.0,2.146]
[1718374913025,3.0,3490.9,3490.0,2.146]
[1718374913329,3.0,3490.9,3490.1,2.86516]
[1718374913640,0.03332053,3490.8,3490.1,2.86522]
[1718374913852,0.03332053,3490.8,3490.2,0.787655]
[1718374913992,0.03332053,3490.8,3490.3,0.55]
[1718374915435,0.03332053,3490.8,3490.4,0.05729251]
[1718374915633,0.03332053,3490.8,3490.5,0.55]
[1718374915790,3.0,3490.9,3490.6,0.05729076]
[1718374915985,0.03341057,3490.7,3490.6,3.73461708]
[1718374916190,10.27,3491.7,3490.6,4.28461708]
[1718374916500,1.46623638,3491.6,3490.7,3.4147]
[1718374917014,1.46623638,3491.6,3490.7,0.55]
[1718374917417,3.0,3491.3,3490.7,0.55]
[1718374917738,0.03252753,3491.2,3490.7,0.55]
[1718374917894,0.03252753,3491.2,3490.8,0.64306171]
[1718374918096,3.0,3491.3,3490.8,0.64306171]
[1718374918334,0.03246159,3491.1,3490.8,0.64306171]
[1718374918529,3.0,3491.3,3490.8,0.64306171]
[1718374918736,0.03239565,3491.0,3490.8,0.64306171]
[1718374918924,3.0,3491.3,3490.9,0.49276788]
[1718374920944,1.43344514,3491.2,3490.3,2.3606]
[1718374921108,1.43344514,3491.2,3490.4,1.608]
[1718374921109,4.29780514,3491.2,3490.4,1.608]
[1718374921306,3.0,3490.8,3489.7,2.3987]
[1718374921530,1.43344514,3490.7,3490.1,1.608]
[1718374922407,4.29821514,3490.7,3490.1,1.608]
[1718374922628,3.72982151,3490.6,3490.1,1.608]
[1718374922830,1.43344514,3490.5,3490.1,1.608]
[1718374925107,3.0,3490.4,3489.7,2.3987]
[1718374925307,1.43344514,3490.3,3489.6,1.608]
[1718374925515,3.0,3490.0,3489.6,1.608]
[1718374925822,3.0,3490.0,3489.1,2.86604]
[1718374925823,3.0,3489.6,3488.7,2.2966]
[1718374926023,2.86583,3489.4,3488.6,1.608]
[1718374926359,2.86607,3489.1,3488.2,1.608]
[1718374926644,2.86574,3489.5,3487.4,2.920486]
[1718374926645,3.0,3488.3,3487.4,2.920486]
[1718374926949,1.43344514,3488.2,3487.6,1.608]
[1718374927152,4.43344514,3488.2,3487.6,1.608]
[1718374927354,3.0,3487.9,3487.6,1.608]
[1718374927509,3.0,3487.9,3487.4,0.448586]
[1718374927715,3.0,3487.9,3487.2,1.7309951]
[1718374928033,3.0,3487.9,3487.2,0.81998161]
[1718374928356,3.0,3487.9,3487.3,1.608]
[1718374928649,3.0,3487.5,3487.2,0.1229951]
[1718374928961,4.43344514,3487.5,3487.2,0.1229951]
[1718374932764,0.02859477,3487.4,3487.2,0.1229951]
[1718374933330,1.43344514,3487.3,3487.2,0.1229951]
[1718374933637,2.19530513,3487.3,3487.2,0.1229951]
[1718374933859,0.028908,3487.3,3487.2,0.1229951]
[1718374935362,1.46235314,3487.3,3487.2,0.1229951]
[1718374936156,0.028908,3487.3,3487.2,0.1229951]
[1718374937359,1.46235314,3487.3,3487.2,0.1229951]
[1718374938242,0.028908,3487.3,3487.2,0.1229951]
[1718374939921,1.46235314,3487.3,3487.2,0.1229951]
[1718374940121,2.49532045,3487.3,3487.2,0.1229951]
[1718374940638,5.49532045,3487.3,3487.2,0.1229951]
[1718374940957,2.49532045,3487.3,3487.2,0.1229951]
[1718374941157,5.49532045,3487.3,3487.2,0.1229951]
[1718374942484,8.73656,3486.4,3486.3,3.18600385]
[1718374942664,7.30172514,3486.4,3486.3,3.18600385]
[1718374942836,10.32779599,3486.4,3486.3,3.18600385]
[1718374943036,7.45951599,3486.4,3486.3,3.18600385]
[1718374943275,10.32779599,3486.4,3486.3,3.18600385]
[1718374943499,14.51567759,3486.4,3486.3,3.18600385]
[1718374943842,8.77911759,3486.4,3486.3,3.18600385]
[1718374944064,7.45951599,3486.4,3486.3,3.18600385]
[1718374944388,3.02607085,3486.4,3486.3,3.18600385]
[1718374944542,0.02607085,3486.4,3486.3,3.18600385]
[1718374944738,3.0,3486.8,3486.3,3.18600385]
[1718374944941,0.02750519,3486.4,3486.3,3.18600385]
[1718374945141,4.43344514,3486.7,3486.3,3.18600385]
[1718374945644,3.0,3486.4,3486.3,3.18600385]
[1718374945844,4.43344514,3486.4,3486.3,3.18600385]
[1718374947347,10.30172514,3486.4,3486.3,3.18600385]
[1718374947647,9.33725665,3486.4,3486.3,3.18600385]
[1718374948079,7.43344514,3486.4,3486.3,3.18600385]
[1718374950403,10.30172514,3486.4,3486.3,3.18600385]
[1718374950753,13.17000514,3486.4,3486.3,3.18600385]
[1718374950996,19.05828514,3486.4,3486.3,3.18600385]
[1718374952687,3.0,3485.3,3483.9,3.27060772]
[1718374953009,1.43344514,3484.8,3483.9,3.27060772]
[1718374953162,1.43344514,3484.8,3484.0,2.92761384]
[1718374953361,3.02,3485.5,3484.4,2.86988]
[1718374953362,3.0,3485.3,3484.4,2.86988]
[1718374953571,3.0,3485.8,3485.0,4.48243]
[1718374953762,7.27,3486.2,3485.2,2.86927]
[1718374953763,4.43344514,3485.7,3485.2,2.86927]
[1718374953965,1.46773734,3485.7,3485.3,2.86918]
[1718374954189,4.43344514,3485.7,3485.0,0.448243]
[1718374954395,3.0,3485.3,3484.4,2.86985]
[1718374954609,3.0,3485.3,3484.1,2.3103]
[1718374954610,1.48344522,3485.2,3484.1,2.3103]
[1718374954800,3.0,3484.9,3483.9,3.27060772]
[1718374955003,3.0,3485.3,3484.5,2.86984]
[1718374955174,4.43344514,3485.2,3484.5,2.86984]
[1718374955574,0.05000008,3485.1,3484.4,1.613]
[1718374955776,0.05000008,3485.1,3483.9,3.27060772]
[1718374955777,3.0,3484.7,3483.9,3.27060772]
[1718374955976,1.48344522,3484.6,3484.0,1.613]
[1718374956216,1.43344514,3484.6,3484.0,1.613]
[1718374956390,0.05000008,3484.5,3483.9,3.27060772]
[1718374956727,1.43344514,3484.4,3483.9,3.27060772]
[1718374956885,0.05000008,3484.3,3483.9,3.27060772]
[1718374957089,1.43344514,3484.2,3483.9,3.27060772]
[1718374957400,0.05000008,3484.1,3483.9,3.27060772]
[1718374957573,1.43344514,3484.0,3483.9,3.27060772]
[1718374958217,3.0,3484.1,3483.9,3.27060772]
[1718374958417,1.43344514,3484.1,3483.9,3.27060772]
[1718374958613,1.43344514,3484.0,3483.9,3.27060772]
[1718374959436,1.87678965,3484.0,3483.9,3.27060772]
[1718374959577,4.87678965,3484.0,3483.9,3.27060772]
[1718374960245,3.0,3484.0,3483.9,3.27060772]
[1718374960524,1.43467514,3484.0,3483.9,3.27060772]
[1718374961275,0.83606994,3484.0,3483.9,3.27060772]
[1718374961514,0.00123,3484.0,3483.9,3.27060772]
[1718374961719,1.48467522,3484.0,3483.9,3.27060772]
[1718374961921,1.43467514,3484.0,3483.9,3.27060772]
[1718374962537,0.00123,3484.0,3483.9,3.27060772]
[1718374962683,3.0,3484.9,3483.9,5.772968]
[1718374962882,1.48344522,3484.8,3484.2,2.87008]
[1718374963122,1.48344522,3484.8,3484.3,4.48301]
[1718374963123,1.43344514,3484.8,3484.3,4.48301]
[1718374963431,1.43344514,3484.8,3484.3,1.613]
[1718374963778,1.43344514,3484.8,3483.9,8.643268]
[1718374963979,3.3,3485.3,3484.5,2.86982]
[1718374964294,3.3,3485.3,3484.3,1.613]
[1718374964295,4.48344522,3485.2,3484.4,2.86992]
[1718374964514,4.48344522,3485.2,3484.5,2.86983]
[1718374964908,1.48344522,3485.2,3484.5,2.86983]
[1718374965123,3.3,3485.3,3484.5,2.86977]
[1718374965325,4.43344514,3485.3,3484.2,4.48303]
[1718374965632,1.43344514,3485.3,3484.6,2.86976]
[1718374965795,1.43344514,3485.3,3484.8,2.86959]
[1718374966299,4.43344514,3485.3,3484.6,1.613]
[1718374966597,1.48344522,3485.2,3484.2,2.87008]
[1718374967281,1.48344522,3485.2,3484.3,2.86998]
[1718374967484,3.0,3484.9,3484.0,0.87662631]
[1718374967685,1.48344522,3484.8,3483.9,3.609968]
[1718374967985,1.43344514,3484.8,3484.0,2.87024]
[1718374968182,0.05000008,3484.7,3483.9,3.609968]
[1718374968385,1.43344514,3484.6,3483.9,3.27060772]
[1718374969304,0.05000008,3484.5,3483.9,3.27060772]
[1718374969513,1.43344514,3484.4,3483.9,3.27060772]
[1718374970328,0.05000008,3484.3,3483.9,3.27060772]
[1718374970623,1.43344514,3484.2,3483.9,3.27060772]
[1718374970925,3.0,3484.4,3483.9,3.27060772]
[1718374971103,4.43344514,3484.4,3483.9,3.27060772]
[1718374972101,1.48344522,3484.3,3483.9,3.27060772]
[1718374975104,3.0,3484.1,3483.9,3.27060772]
[1718374975445,1.48344522,3484.0,3483.9,3.27060772]
[1718374975750,4.48344522,3484.0,3483.9,3.27060772]
[1718374976993,7.35370522,3484.0,3483.9,3.27060772]
[1718374977416,4.48344522,3484.0,3483.9,3.27060772]
[1718374978185,4.43344514,3484.0,3483.9,3.27060772]
[1718374978425,5.28032351,3484.0,3483.9,3.27060772]
[1718374978727,4.43344514,3484.0,3483.9,3.27060772]
[1718374979035,3.0,3484.4,3483.9,3.27060772]
[1718374979233,1.43344514,3484.3,3483.9,3.27060772]
[1718374979434,0.05000008,3484.2,3483.9,3.27060772]
[1718374979740,1.48344522,3484.2,3483.9,3.27060772]
[1718374980115,1.43344514,3484.2,3483.9,3.27060772]
[1718374980316,3.0,3484.5,3484.0,2.87024]
[1718374980615,1.43344514,3484.4,3484.1,2.87017]
[1718374980984,10.27,3485.3,3484.2,1.67040013]
[1718374981259,2.86865,3486.0,3484.2,1.67040013]
[1718374981260,1.43344514,3485.2,3484.8,2.8696]
[1718374982158,3.0,3485.8,3485.0,2.86943]
[1718374982324,1.48344522,3485.7,3485.0,2.8694]
[1718374982526,4.48344522,3485.7,3485.0,2.8694]
[1718374982719,4.48344522,3485.7,3484.8,2.86953]
[1718374983419,4.48344522,3485.7,3484.9,2.8695]
[1718374983619,4.93178974,3485.7,3484.7,2.86961]
[1718374983841,3.0,3485.3,3484.7,2.86961]
[1718374984046,4.43344514,3485.3,3484.7,2.86961]
[1718374984453,4.43344514,3485.3,3484.6,6.87842]
[1718374984631,4.43344514,3485.3,3484.6,6.87843]
[1718374984952,4.43344514,3485.3,3484.6,4.0087]
[1718374985169,1.48344522,3485.2,3484.6,1.613]
[1718374985344,1.48344522,3485.2,3484.5,2.86982]
[1718374986513,1.48344522,3485.2,3484.4,1.613]
[1718374986724,3.0,3485.8,3484.8,4.4826]
[1718374986958,1.43344514,3485.7,3485.2,1.613]
[1718374987130,1.43344514,3485.7,3485.2,4.48227]
[1718374987545,1.43344514,3485.7,3485.3,2.86918]
[1718374987856,1.43344514,3485.7,3484.6,2.86971]
[1718374987857,3.05000008,3485.6,3484.6,2.86971]
[1718374988033,1.43344514,3485.5,3484.7,0.0573843]
[1718374988235,3.0,3486.0,3485.0,1.613]
[1718374988499,1.43344514,3486.0,3485.4,1.613]
[1718374989056,1.43344514,3486.0,3485.5,2.86901]
[1718374989547,1.43344514,3486.0,3485.4,4.48209]
[1718374990648,15.18,3486.5,3485.4,5.217236]
[1718374990649,3.0,3486.5,3485.4,5.217236]
[1718374990826,1.48344522,3486.4,3485.8,1.613]
[1718374991162,4.48344522,3486.4,3485.8,1.613]
[1718374991523,3.0,3486.1,3485.3,2.86918]
[1718374991726,1.43344514,3486.0,3485.3,4.48218]
[1718374991924,1.43344514,3486.0,3485.3,1.613]
[1718374992320,0.05000008,3485.9,3485.3,1.613]
[1718374992636,5.86887,3485.7,3484.5,2.3867]
[1718374992843,4.35245522,3485.6,3484.6,1.613]
[1718374993038,1.48344522,3485.6,3484.6,1.613]
[1718374993528,1.48344522,3485.6,3485.0,1.613]
[1718374993723,1.43344514,3485.6,3485.0,1.613]
[1718374994564,0.44334451,3486.0,3485.0,4.48243]
[1718374994868,0.44334451,3486.0,3485.4,1.613]
[1718374994869,1.48344522,3485.9,3485.4,1.613]
[1718374995262,3.0,3485.8,3484.2,1.723]
[1718374995460,1.43344514,3485.7,3485.1,4.48235]
[1718374995666,3.0,3485.2,3484.4,2.86988]
[1718374995826,0.3,3485.1,3484.4,4.48288]
[1718374996027,4.43344514,3485.2,3484.4,1.613]
[1718374996273,1.48344522,3485.1,3483.9,4.143343]
[1718374996432,1.48344522,3485.1,3484.2,1.613]
[1718374997531,1.43344514,3485.1,3484.6,1.613]
[1718374998134,0.05000008,3485.0,3484.6,1.613]
[1718374998329,1.43344514,3484.9,3484.6,1.613]
[1718374998533,1.43344514,3484.9,3484.2,1.613]
[1718374998768,0.05000008,3484.8,3484.2,1.613]
[1718374998932,1.48344522,3484.8,3484.2,1.613]
[1718374999625,1.43344514,3484.8,3484.2,1.613]